[Event "Bijnor Open 2023"]
[Site "Bijnor"]
[Date "2023.12.02"]
[Round "6.7"]
[White "Sumit Kumar"]
[Black "Anchal, Rastogi"]
[Result "0-1"]
[ECO "E61"]
[WhiteElo "1334"]
[BlackElo "1770"]
[Annotator "NA RC"]
[PlyCount "80"]
[EventDate "2023.11.29"]
[EventCountry "IND"]
[SourceTitle "playchess.com"]
[Source "ChessBase"]
[SourceQuality "1"]
[TimeControl "5400+30"]

1. d4 {[%emt 0:00:07]} Nf6 {[%emt 0:00:24]} 2. c4 {[%emt 0:00:08]} g6 {[%emt 0:00:08]} 3. Nc3 {[%emt 0:00:32]} Bg7 {[%emt 0:00:03]} 4. Nf3 {[%emt 0:00:08]} d6 {[%emt 0:00:24]} 5. Bg5 {[%emt 0:00:13]} Nbd7 {[%emt 0:03:02]} 6. e3 {[%emt 0:00:43]} O-O {[%emt 0:00:49]} 7. Be2 {[%emt 0:01:00]} c6 {[%emt 0:00:19]} 8. Qc2 {[%emt 0:00:45]} Re8 {[%emt 0:01:24]} 9. O-O {[%emt 0:09:14]} h6 {[%emt 0:01:54]} 10. Bh4 {[%emt 0:00:12]} Qc7 {[%emt 0:00:18]} 11. Rfd1 {[%emt 0:08:59]} Nf8 {[%emt 0:00:39]} 12. b4 {[%emt 0:00:47]} g5 {[%emt 0:03:48]} 13. Bg3 {[%emt 0:00:24]} Nh5 {[%emt 0:00:09]} 14. Rac1 {[%emt 0:02:09]} Nxg3 {[%emt 0:04:06]} 15. hxg3 {[%emt 0:00:22]} Ng6 {[%emt 0:00:44]} 16. e4 {[%emt 0:04:48]} Bg4 {[%emt 0:05:36]} 17. Ne1 {[%emt 0:06:06]} Bd7 {[%emt 0:00:49]} 18. c5 {[%emt 0:01:02]} a5 {[%emt 0:02:13]} 19. b5 {[%emt 0:05:40]} dxc5 {[%emt 0:01:13]} 20. bxc6 {[%emt 0:02:33]} bxc6 {[%emt 0:00:42]} 21. d5 {[%emt 0:02:58]} Bd4 {[%emt 0:01:42]} 22. Rxd4 {[%emt 0:05:40]} cxd4 {[%emt 0:00:27]} 23. Nb5 {[%emt 0:00:24]} Qb6 {[%emt 0:01:24]} 24. dxc6 {[%emt 0:00:13]} Rec8 {[%emt 0:02:53]} 25. Rb1 {[%emt 0:22:58]} Qxc6 {[%emt 0:03:00]} 26. Qb3 {[%emt 0:02:04]} e5 {[%emt 0:01:04]} 27. a4 {[%emt 0:00:58]} Kg7 {[%emt 0:07:05]} 28. Qa3 {[%emt 0:03:06]} Qc5 {[%emt 0:01:40]} 29. Qb3 {[%emt 0:01:51]} Rab8 {[%emt 0:00:47]} 30. Qf3 {[%emt 0:01:39]} Qe7 {[%emt 0:07:42]} 31. Bd3 {[%emt 0:04:15]} h5 {[%emt 0:03:12]} 32. Qxh5 {[%emt 0:03:11]} g4 {[%emt 0:00:29]} 33. Nf3 {[%emt 0:10:04]} Rh8 {[%emt 0:02:26]} 34. Qg5 {[%emt 0:00:07]} gxf3 {[%emt 0:00:16]} 35. Qd2 {[%emt 0:00:57]} fxg2 {[%emt 0:00:40]} 36. Kxg2 {[%emt 0:00:18]} Qd8 {[%emt 0:01:40]} 37. Qa2 {[%emt 0:00:31]} Qg5 {[%emt 0:00:35]} 38. Nd6 {[%emt 0:01:08]} Be6 {[%emt 0:01:18]} 39. Qc2 {[%emt 0:00:41]} Nf4+ {[%emt 0:05:45]} 40. Kg1 {[%emt 0:00:08]} Qh5 {[%emt 0:00:12]} 0-1

[Event "Bijnor Open 2023"]
[Site "Bijnor"]
[Date "2023.12.02"]
[Round "6.8"]
[White "Prabindra Mani Verma"]
[Black "Wazeer Ahmad, Khan"]
[Result "0-1"]
[ECO "B01"]
[WhiteElo "1273"]
[BlackElo "1686"]
[Annotator "NA RC"]
[PlyCount "76"]
[EventDate "2023.11.29"]
[EventCountry "IND"]
[SourceTitle "playchess.com"]
[Source "ChessBase"]
[SourceQuality "1"]
[TimeControl "5400+30"]

1. e4 {[%emt 0:00:16]} d5 {[%emt 0:00:32]} 2. exd5 {[%emt 0:00:26]} Nf6 {[%emt 0:00:17]} 3. d4 {[%emt 0:01:14]} Nxd5 {[%emt 0:00:10]} 4. c4 {[%emt 0:00:24]} Nb6 {[%emt 0:00:11]} 5. Nc3 {[%emt 0:01:11]} c6 {[%emt 0:00:09]} 6. h3 {[%emt 0:01:04]} Bf5 {[%emt 0:00:40]} 7. Nf3 {[%emt 0:01:45]} e6 {[%emt 0:00:57]} 8. Be2 {[%emt 0:03:12]} N8d7 {[%emt 0:01:30]} 9. O-O {[%emt 0:01:04]} Nf6 {[%emt 0:06:01]} 10. Nh4 {[%emt 0:00:54]} Bg6 {[%emt 0:03:17]} 11. Nxg6 {[%emt 0:06:52]} hxg6 {[%emt 0:00:12]} 12. a3 {[%emt 0:04:11]} Qc7 {[%emt 0:01:31]} 13. b3 {[%emt 0:02:58]} Be7 {[%emt 0:03:50]} 14. Bf3 {[%emt 0:04:24]} Rd8 {[%emt 0:02:25]} 15. Ne2 {[%emt 0:02:26]} e5 {[%emt 0:02:17]} 16. Qe1 {[%emt 0:04:27]} e4 {[%emt 0:02:56]} 17. Bf4 {[%emt 0:01:17]} Qd7 {[%emt 0:02:22]} 18. Bg4 {[%emt 0:07:57]} Nxg4 {[%emt 0:00:20]} 19. hxg4 {[%emt 0:00:26]} Qxg4 {[%emt 0:01:14]} 20. f3 {[%emt 0:02:24]} exf3 {[%emt 0:05:49]} 21. Rxf3 {[%emt 0:00:18]} Kf8 {[%emt 0:02:00]} 22. Rg3 {[%emt 0:00:58]} Qd7 {[%emt 0:01:27]} 23. a4 {[%emt 0:05:13]} Kg8 {[%emt 0:05:11]} 24. Re3 {[%emt 0:04:48]} Nc8 {[%emt 0:02:32]} 25. Rd1 {[%emt 0:02:05]} Nd6 {[%emt 0:02:01]} 26. Ng3 {[%emt 0:01:09]} Bf6 {[%emt 0:01:16]} 27. Kf2 {[%emt 0:07:35]} Rh4 {[%emt 0:03:32]} 28. Bxd6 {[%emt 0:00:49]} Qxd6 {[%emt 0:00:26]} 29. Re8+ {[%emt 0:00:11]} Kh7 {[%emt 0:01:18]} 30. Re4 {[%emt 0:01:41]} c5 {[%emt 0:03:40]} 31. Rxh4+ {[%emt 0:01:15]} Bxh4 {[%emt 0:00:23]} 32. Qe3 {[%emt 0:01:39]} cxd4 {[%emt 0:00:54]} 33. Qf3 {[%emt 0:00:27]} f5 {[%emt 0:01:03]} 34. Rh1 {[%emt 0:00:17]} Qf6 {[%emt 0:01:49]} 35. Kf1 {[%emt 0:02:45]} Qg5 {[%emt 0:02:44]} 36. Kf2 {[%emt 0:06:04]} f4 {[%emt 0:01:28]} 37. Kg1 {[%emt 0:01:57]} fxg3 {[%emt 0:00:33]} 38. Qd1 {[%emt 0:02:03]} Qe3+ {[%emt 0:00:30]} 0-1

[Event "Bijnor Open 2023"]
[Site "Bijnor"]
[Date "2023.12.02"]
[Round "6.9"]
[White "Verma Ashu"]
[Black "Adithya Vishveshwaran M"]
[Result "1-0"]
[ECO "B01"]
[WhiteElo "1674"]
[BlackElo "1360"]
[Annotator "NA"]
[PlyCount "145"]
[EventDate "2023.11.29"]
[EventCountry "IND"]
[SourceTitle "playchess.com"]
[Source "ChessBase"]
[SourceQuality "1"]
[TimeControl "5400+30"]

1. e4 {[%emt 0:00:03]} d5 {[%emt 0:00:23]} 2. exd5 {[%emt 0:00:19]} Qxd5 {[%emt 0:00:07]} 3. Nc3 {[%emt 0:00:18]} Qd6 {[%emt 0:06:21]} 4. d4 {[%emt 0:03:32]} Nf6 {[%emt 0:00:15]} 5. Nf3 {[%emt 0:04:35]} Bg4 {[%emt 0:06:56]} 6. h3 {[%emt 0:00:38]} Bxf3 {[%emt 0:09:05]} 7. Qxf3 {[%emt 0:00:03]} c6 {[%emt 0:00:09]} 8. Be3 {[%emt 0:04:02]} Nbd7 {[%emt 0:00:42]} 9. O-O-O {[%emt 0:02:21]} Nb6 {[%emt 0:00:50]} 10. g4 {[%emt 0:10:32]} e6 {[%emt 0:00:28]} 11. Bg5 {[%emt 0:13:51]} Nbd5 {[%emt 0:03:15]} 12. Bg2 {[%emt 0:12:12]} Be7 {[%emt 0:06:00]} 13. Nxd5 {[%emt 0:11:19]} Qxd5 {[%emt 0:07:24]} 14. Qxd5 {[%emt 0:00:10]} cxd5 {[%emt 0:03:27]} 15. Rhe1 {[%emt 0:01:19]} h5 {[%emt 0:09:57]} 16. f3 {[%emt 0:04:35]} Kd7 {[%emt 0:06:32]} 17. Rd3 {[%emt 0:04:20]} Rac8 {[%emt 0:01:01]} 18. Rb3 {[%emt 0:01:05]} Rc7 {[%emt 0:00:08]} 19. Bf4 {[%emt 0:07:08]} Bd6 {[%emt 0:01:19]} 20. Bd2 {[%emt 0:01:03]} Rhc8 {[%emt 0:00:45]} 21. c3 {[%emt 0:03:34]} Bg3 {[%emt 0:02:49]} 22. Rd1 {[%emt 0:01:54]} Ne8 {[%emt 0:02:42]} 23. gxh5 {[%emt 0:00:56]} Nf6 {[%emt 0:01:35]} 24. h6 {[%emt 0:00:47]} g6 {[%emt 0:00:16]} 25. Bf1 {[%emt 0:01:54]} a6 {[%emt 0:00:02]} 26. Be2 {[%emt 0:05:24]} Nh5 {[%emt 0:00:18]} 27. f4 {[%emt 0:01:13]} Bxf4 {[%emt 0:03:00]} 28. Bxh5 {[%emt 0:00:02]} Bxd2+ {[%emt 0:00:14]} 29. Kxd2 {[%emt 0:00:05]} gxh5 {[%emt 0:00:07]} 30. Rg1 {[%emt 0:01:00]} Rh8 {[%emt 0:04:17]} 31. Rg7 {[%emt 0:01:36]} Kc6 {[%emt 0:04:52]} 32. h7 {[%emt 0:00:31]} f5 {[%emt 0:01:33]} 33. Rg6 {[%emt 0:00:17]} Re7 {[%emt 0:00:15]} 34. a4 {[%emt 0:00:19]} b6 {[%emt 0:01:33]} 35. Ke3 {[%emt 0:00:17]} Rhxh7 {[%emt 0:03:16]} 36. Kf4 {[%emt 0:00:01]} h4 {[%emt 0:07:27]} 37. Ke5 {[%emt 0:00:36]} Rhf7 {[%emt 0:06:26]} 38. Rxe6+ {[%emt 0:01:56]} Rxe6+ {[%emt 0:00:30]} 39. Kxe6 {[%emt 0:00:01]} Rf8 {[%emt 0:02:32]} 40. Ra3 {[%emt 0:02:12]} f4 {[%emt 0:00:19]} 41. Ra1 {[%emt 0:00:04]} f3 {[%emt 0:00:40]} 42. Rf1 {[%emt 0:00:02]} Rf4 {[%emt 0:00:42]} 43. Rf2 {[%emt 0:00:59]} Rf8 {[%emt 0:00:53]} 44. Ke5 {[%emt 0:00:12]} b5 {[%emt 0:00:33]} 45. axb5+ {[%emt 0:00:04]} axb5 {[%emt 0:00:14]} 46. b3 {[%emt 0:00:12]} Rf7 {[%emt 0:00:37]} 47. Ke6 {[%emt 0:00:19]} Rf4 {[%emt 0:00:07]} 48. Ke5 {[%emt 0:00:15]} Re4+ {[%emt 0:00:52]} 49. Kf5 {[%emt 0:00:02]} Re3 {[%emt 0:00:08]} 50. Kf4 {[%emt 0:00:02]} Rxc3 {[%emt 0:00:05]} 51. Rxf3 {[%emt 0:00:02]} b4 {[%emt 0:00:01]} 52. Rxc3+ {[%emt 0:01:16]} bxc3 {[%emt 0:00:02]} 53. Ke3 {[%emt 0:00:00]} Kb5 {[%emt 0:00:43]} 54. Kd3 {[%emt 0:00:03]} Kb4 {[%emt 0:00:03]} 55. Kc2 {[%emt 0:00:01]} Ka5 {[%emt 0:00:40]} 56. Kxc3 {[%emt 0:00:03]} Kb5 {[%emt 0:00:02]} 57. Kb2 {[%emt 0:00:26]} Kb4 {[%emt 0:00:16]} 58. Kc2 {[%emt 0:00:12]} Ka5 {[%emt 0:00:14]} 59. Kb1 {[%emt 0:00:21]} Kb4 {[%emt 0:00:16]} 60. Kb2 {[%emt 0:00:03]} Ka5 {[%emt 0:00:15]} 61. Ka3 {[%emt 0:00:02]} Kb5 {[%emt 0:00:04]} 62. b4 {[%emt 0:04:47]} Kc4 {[%emt 0:00:03]} 63. Ka4 {[%emt 0:00:01]} Kxd4 {[%emt 0:00:03]} 64. b5 {[%emt 0:00:01]} Ke3 {[%emt 0:04:25]} 65. b6 {[%emt 0:00:10]} Kf3 {[%emt 0:01:21]} 66. b7 {[%emt 0:00:05]} Kg3 {[%emt 0:00:01]} 67. b8=Q+ {[%emt 0:00:24]} Kxh3 {[%emt 0:00:04]} 68. Qf4 {[%emt 0:00:48]} d4 {[%emt 0:00:32]} 69. Qxd4 {[%emt 0:00:06]} Kg3 {[%emt 0:00:15]} 70. Qe3+ {[%emt 0:00:03]} Kh2 {[%emt 0:00:24]} 71. Qf4+ {[%emt 0:00:04]} Kh3 {[%emt 0:00:06]} 72. Kb3 {[%emt 0:00:02]} Kg2 {[%emt 0:00:11]} 73. Qxh4 {[%emt 0:00:03]} 1-0

[Event "Bijnor Open 2023"]
[Site "Bijnor"]
[Date "2023.12.02"]
[Round "6.10"]
[White "Sparsh Yadav"]
[Black "Gaurav, Bharadwaj"]
[Result "1-0"]
[ECO "C40"]
[WhiteElo "1598"]
[BlackElo "1301"]
[Annotator "NA RC"]
[PlyCount "51"]
[EventDate "2023.11.29"]
[EventCountry "IND"]
[SourceTitle "playchess.com"]
[Source "ChessBase"]
[SourceQuality "1"]
[TimeControl "5400+30"]

1. e4 {[%emt 0:09:34]} e5 {[%emt 0:09:46]} 2. Nf3 {[%emt 0:00:00]} d5 {[%emt 0:00:01]} 3. exd5 {[%emt 0:00:00]} e4 {[%emt 0:00:06]} 4. Qe2 {[%emt 0:00:00]} Nf6 {[%emt 0:00:17]} 5. d3 {[%emt 0:00:00]} Qxd5 {[%emt 0:00:54]} 6. Nc3 {[%emt 0:00:00]} Bb4 {[%emt 0:00:11]} 7. Bd2 {[%emt 0:00:00]} Bxc3 {[%emt 0:00:34]} 8. Bxc3 {[%emt 0:00:00]} O-O {[%emt 0:00:33]} 9. Ne5 {[%emt 0:00:00]} exd3 {[%emt 0:01:14]} 10. Qxd3 {[%emt 0:02:49]} Re8 {[%emt 0:01:47]} 11. f4 {[%emt 0:00:16]} Bg4 {[%emt 0:04:21]} 12. Qxd5 {[%emt 0:02:23]} Nxd5 {[%emt 0:00:34]} 13. Bc4 {[%emt 0:00:15]} Be6 {[%emt 0:05:44]} 14. f5 {[%emt 0:00:26]} Nxc3 {[%emt 0:06:51]} 15. fxe6 {[%emt 0:00:14]} fxe6 {[%emt 0:13:09]} 16. bxc3 {[%emt 0:00:27]} a5 {[%emt 0:00:24]} 17. Rb1 {[%emt 0:00:25]} Ra7 {[%emt 0:00:27]} 18. Rf1 {[%emt 0:00:17]} Re7 {[%emt 0:01:33]} 19. Rd1 {[%emt 0:00:12]} Re8 {[%emt 0:01:09]} 20. a4 {[%emt 0:00:30]} Na6 {[%emt 0:01:53]} 21. Rf7 {[%emt 0:01:18]} Nb8 {[%emt 0:11:03]} 22. Rf1 {[%emt 0:00:23]} Na6 {[%emt 0:00:06]} 23. Rb1 {[%emt 0:00:08]} Nb8 {[%emt 0:00:02]} 24. Nc6 {[%emt 0:00:14]} Re7 {[%emt 0:00:40]} 25. Rd1 Ra8 26. Rb1 1-0

[Event "Bijnor Open 2023"]
[Site "Bijnor"]
[Date "2023.12.03"]
[Round "7.1"]
[White "Kulkarni, Vikramaditya"]
[Black "Ramnathan, Balasubramaniam"]
[Result "1-0"]
[ECO "B06"]
[WhiteElo "2209"]
[BlackElo "1920"]
[Annotator "NA RC"]
[PlyCount "81"]
[EventDate "2023.11.29"]
[EventCountry "IND"]
[SourceTitle "playchess.com"]
[Source "ChessBase"]
[SourceQuality "1"]
[TimeControl "5400+30"]

1. e4 {[%emt 0:00:18]} d6 {[%emt 0:00:40]} 2. d4 {[%emt 0:00:09]} g6 {[%emt 0:00:41]} 3. Nf3 {[%emt 0:01:06]} Bg7 {[%emt 0:00:07]} 4. Be2 {[%emt 0:00:46]} Nd7 {[%emt 0:01:12]} 5. O-O {[%emt 0:01:57]} e5 {[%emt 0:02:59]} 6. dxe5 {[%emt 0:14:38]} dxe5 {[%emt 0:01:28]} 7. b3 {[%emt 0:06:13]} Ne7 {[%emt 0:04:17]} 8. a4 {[%emt 0:03:29]} O-O {[%emt 0:01:49]} 9. Ba3 {[%emt 0:00:23]} Re8 {[%emt 0:00:40]} 10. Bc4 {[%emt 0:15:58]} Bf6 {[%emt 0:06:58]} 11. Nc3 {[%emt 0:08:42]} Nb6 {[%emt 0:07:59]} 12. Be2 {[%emt 0:04:15]} Be6 {[%emt 0:06:17]} 13. Qxd8 {[%emt 0:07:57]} Rexd8 {[%emt 0:02:56]} 14. a5 {[%emt 0:00:20]} Nd7 {[%emt 0:01:13]} 15. a6 {[%emt 0:00:10]} b6 {[%emt 0:01:27]} 16. Bb5 {[%emt 0:07:52]} Rac8 {[%emt 0:10:05]} 17. Bxe7 {[%emt 0:00:33]} Bxe7 {[%emt 0:00:13]} 18. Bc6 {[%emt 0:00:07]} f5 {[%emt 0:15:25]} 19. exf5 {[%emt 0:03:12]} gxf5 {[%emt 0:00:30]} 20. Nb5 {[%emt 0:00:32]} Nb8 {[%emt 0:10:09]} 21. Nxa7 {[%emt 0:03:19]} Nxc6 {[%emt 0:02:05]} 22. Nxc6 {[%emt 0:00:02]} Re8 {[%emt 0:00:43]} 23. Nxe7+ {[%emt 0:00:11]} Rxe7 {[%emt 0:00:03]} 24. Nxe5 {[%emt 0:00:21]} Bd5 {[%emt 0:01:15]} 25. Rfe1 {[%emt 0:00:48]} Ra8 {[%emt 0:01:49]} 26. f3 {[%emt 0:01:56]} Kg7 {[%emt 0:03:30]} 27. c4 {[%emt 0:01:40]} Kf6 {[%emt 0:00:49]} 28. cxd5 {[%emt 0:02:36]} Rxe5 {[%emt 0:00:09]} 29. Rec1 {[%emt 0:00:13]} Ra7 {[%emt 0:00:29]} 30. Rc6+ {[%emt 0:00:07]} Ke7 {[%emt 0:01:26]} 31. d6+ {[%emt 0:00:14]} cxd6 {[%emt 0:00:16]} 32. Rxb6 {[%emt 0:00:05]} Kd7 {[%emt 0:02:51]} 33. Rd1 {[%emt 0:00:02]} Re6 {[%emt 0:01:19]} 34. Rc1 {[%emt 0:00:02]} d5 {[%emt 0:02:19]} 35. Rxe6 {[%emt 0:00:05]} Kxe6 {[%emt 0:00:25]} 36. Rc6+ {[%emt 0:00:01]} Ke5 {[%emt 0:00:26]} 37. Kf2 {[%emt 0:00:36]} d4 {[%emt 0:00:21]} 38. Rc5+ {[%emt 0:00:10]} Kd6 {[%emt 0:00:25]} 39. Rxf5 {[%emt 0:01:19]} Re7 {[%emt 0:00:20]} 40. Ra5 {[%emt 0:00:08]} d3 {[%emt 0:00:13]} 41. a7 {[%emt 0:01:48]} 1-0

[Event "Bijnor Open 2023"]
[Site "Bijnor"]
[Date "2023.12.03"]
[Round "7.2"]
[White "Amartya Kumar"]
[Black "Mohammad Sameed"]
[Result "1/2-1/2"]
[ECO "B01"]
[WhiteElo "1375"]
[BlackElo "1468"]
[Annotator "NA RC"]
[PlyCount "44"]
[EventDate "2023.11.29"]
[EventCountry "IND"]
[SourceTitle "playchess.com"]
[Source "ChessBase"]
[SourceQuality "1"]
[TimeControl "5400+30"]

1. e4 {[%emt 0:00:21]} d5 {[%emt 0:01:21]} 2. exd5 {[%emt 0:00:08]} Qxd5 {[%emt 0:00:35]} 3. d4 {[%emt 0:00:27]} Nc6 {[%emt 0:01:41]} 4. Nf3 {[%emt 0:00:29]} Bf5 {[%emt 0:00:43]} 5. c4 {[%emt 0:01:49]} Qd6 {[%emt 0:02:52]} 6. c5 {[%emt 0:06:30]} Qg6 {[%emt 0:04:25]} 7. Na3 {[%emt 0:03:15]} O-O-O {[%emt 0:00:50]} 8. Be3 {[%emt 0:02:59]} e5 {[%emt 0:05:53]} 9. Nh4 {[%emt 0:03:12]} Qf6 {[%emt 0:01:58]} 10. Nxf5 {[%emt 0:00:30]} Qxf5 {[%emt 0:09:44]} 11. d5 {[%emt 0:06:45]} Qe4 {[%emt 0:00:43]} 12. Bd3 {[%emt 0:03:10]} Qxg2 {[%emt 0:01:30]} 13. dxc6 {[%emt 0:01:14]} Qxh1+ {[%emt 0:00:15]} 14. Ke2 {[%emt 0:00:04]} Qxd1+ {[%emt 0:00:14]} 15. Rxd1 {[%emt 0:00:05]} Be7 {[%emt 0:05:44]} 16. cxb7+ {[%emt 0:03:25]} Kxb7 {[%emt 0:00:33]} 17. c6+ {[%emt 0:00:06]} Kb8 {[%emt 0:01:55]} 18. Rg1 {[%emt 0:01:57]} e4 {[%emt 0:05:41]} 19. Ba6 {[%emt 0:02:52]} Rd5 {[%emt 0:24:50]} 20. Nb5 {[%emt 0:01:21]} Bc5 {[%emt 0:02:29]} 21. Rd1 {[%emt 0:00:05]} Bxe3 {[%emt 0:02:01]} 22. Rxd5 {[%emt 0:00:40]} Nf6 {[%emt 0:00:09]} 1/2-1/2

[Event "Bijnor Open 2023"]
[Site "Bijnor"]
[Date "2023.12.03"]
[Round "7.3"]
[White "Sharma, Harish"]
[Black "Sparsh Yadav"]
[Result "0-1"]
[ECO "B34"]
[WhiteElo "1904"]
[BlackElo "1598"]
[Annotator "NA RC"]
[PlyCount "234"]
[EventDate "2023.11.29"]
[EventCountry "IND"]
[SourceTitle "playchess.com"]
[Source "ChessBase"]
[SourceQuality "1"]
[TimeControl "5400+30"]

1. e4 {[%emt 0:00:09]} c5 {[%emt 0:00:02]} 2. Nf3 {[%emt 0:00:10]} g6 {[%emt 0:00:29]} 3. d4 {[%emt 0:02:05]} cxd4 {[%emt 0:00:09]} 4. Nxd4 {[%emt 0:01:29]} Nf6 {[%emt 0:00:19]} 5. Nc3 {[%emt 0:01:18]} Bg7 {[%emt 0:00:15]} 6. Be2 {[%emt 0:00:17]} O-O {[%emt 0:00:15]} 7. Be3 {[%emt 0:00:15]} Nc6 {[%emt 0:00:18]} 8. Qd2 {[%emt 0:00:12]} d5 {[%emt 0:00:24]} 9. Nxc6 {[%emt 0:01:32]} bxc6 {[%emt 0:00:06]} 10. e5 {[%emt 0:00:04]} Nd7 {[%emt 0:01:10]} 11. f4 {[%emt 0:00:05]} e6 {[%emt 0:00:25]} 12. Na4 {[%emt 0:00:26]} Nxe5 {[%emt 0:01:13]} 13. Bd4 {[%emt 0:05:37]} Nd7 {[%emt 0:00:47]} 14. Bxg7 {[%emt 0:00:19]} Kxg7 {[%emt 0:00:09]} 15. Qc3+ {[%emt 0:00:10]} Qf6 {[%emt 0:05:07]} 16. Qxc6 {[%emt 0:01:08]} Rb8 {[%emt 0:00:16]} 17. Qc3 {[%emt 0:04:58]} d4 {[%emt 0:02:27]} 18. Qd2 {[%emt 0:00:27]} Bb7 {[%emt 0:00:15]} 19. O-O {[%emt 0:01:09]} Bc6 {[%emt 0:00:34]} 20. b3 {[%emt 0:00:24]} Rfd8 {[%emt 0:07:22]} 21. Nb2 {[%emt 0:01:52]} Nb6 {[%emt 0:11:04]} 22. Nd3 {[%emt 0:01:47]} Rbc8 {[%emt 0:00:55]} 23. Ne5 {[%emt 0:00:21]} Be4 {[%emt 0:01:16]} 24. Bd3 {[%emt 0:10:57]} Bxd3 {[%emt 0:00:16]} 25. cxd3 {[%emt 0:00:24]} Rc3 {[%emt 0:01:04]} 26. Ng4 {[%emt 0:00:31]} Qf5 {[%emt 0:00:43]} 27. Nf2 {[%emt 0:01:48]} Qb5 {[%emt 0:01:46]} 28. Rfe1 {[%emt 0:02:10]} Rdc8 {[%emt 0:01:08]} 29. Qe2 {[%emt 0:00:33]} Rc2 {[%emt 0:01:19]} 30. Qe4 {[%emt 0:01:56]} Qd5 {[%emt 0:00:31]} 31. Kf1 {[%emt 0:00:15]} Rd2 {[%emt 0:03:09]} 32. Re2 {[%emt 0:08:32]} Rcc2 {[%emt 0:02:29]} 33. Rxd2 {[%emt 0:04:08]} Rxd2 {[%emt 0:00:04]} 34. a4 {[%emt 0:00:24]} Rb2 {[%emt 0:04:08]} 35. a5 {[%emt 0:00:47]} f5 {[%emt 0:00:19]} 36. Qe1 {[%emt 0:02:01]} Nd7 {[%emt 0:00:40]} 37. Qb4 {[%emt 0:07:20]} Kf7 {[%emt 0:02:56]} 38. Rc1 {[%emt 0:02:35]} Rxb3 {[%emt 0:00:39]} 39. Qc4 {[%emt 0:00:16]} Rb5 {[%emt 0:22:57]} 40. Qxd5 {[%emt 0:01:57]} Rxd5 {[%emt 0:00:30]} 41. Rc7 {[%emt 0:00:24]} a6 {[%emt 0:00:00]} 42. Ra7 {[%emt 0:01:35]} Rd6 {[%emt 0:00:13]} 43. Nd1 {[%emt 0:00:58]} Kg8 {[%emt 0:03:10]} 44. Nb2 {[%emt 0:00:16]} Nc5 {[%emt 0:00:10]} 45. Nc4 {[%emt 0:00:29]} Rd7 {[%emt 0:01:14]} 46. Ra8+ {[%emt 0:00:26]} Kg7 {[%emt 0:00:07]} 47. Ke2 {[%emt 0:00:25]} Rb7 {[%emt 0:07:05]} 48. Rc8 {[%emt 0:00:28]} Rb5 {[%emt 0:00:26]} 49. Rc7+ {[%emt 0:00:34]} Kg8 {[%emt 0:00:07]} 50. Rc6 {[%emt 0:00:29]} Kg7 {[%emt 0:04:08]} 51. Rd6 {[%emt 0:00:28]} Kf6 {[%emt 0:05:09]} 52. Rxd4 {[%emt 0:00:19]} Nb3 {[%emt 0:00:03]} 53. Rd7 {[%emt 0:00:09]} Nxa5 {[%emt 0:00:15]} 54. Ne5 {[%emt 0:00:24]} Rb7 {[%emt 0:00:08]} 55. Rd6 {[%emt 0:00:30]} Nb3 {[%emt 0:02:34]} 56. Rxa6 {[%emt 0:00:13]} g5 {[%emt 0:00:20]} 57. g3 {[%emt 0:00:43]} gxf4 {[%emt 0:01:10]} 58. gxf4 {[%emt 0:00:04]} Nd4+ {[%emt 0:00:50]} 59. Ke3 {[%emt 0:00:12]} Nc2+ {[%emt 0:00:14]} 60. Kd2 {[%emt 0:01:27]} Nb4 {[%emt 0:00:11]} 61. Ra4 {[%emt 0:07:17]} Nd5 {[%emt 0:00:16]} 62. Nf3 {[%emt 0:00:37]} Rb2+ {[%emt 0:00:30]} 63. Ke1 {[%emt 0:00:08]} Rb4 {[%emt 0:00:31]} 64. Ra7 {[%emt 0:08:22]} Nxf4 {[%emt 0:00:41]} 65. d4 {[%emt 0:00:22]} h5 {[%emt 0:00:30]} 66. h4 {[%emt 0:00:19]} Nd5 {[%emt 0:03:51]} 67. Rh7 {[%emt 0:02:35]} Kg6 {[%emt 0:00:13]} 68. Rd7 {[%emt 0:00:28]} f4 {[%emt 0:00:31]} 69. Ng5 {[%emt 0:01:23]} Rxd4 {[%emt 0:00:46]} 70. Nxe6 {[%emt 0:00:32]} Re4+ {[%emt 0:00:03]} 71. Kf2 {[%emt 0:00:17]} Nf6 {[%emt 0:02:19]} 72. Rg7+ {[%emt 0:00:57]} Kh6 {[%emt 0:00:31]} 73. Re7 {[%emt 0:01:58]} Re3 {[%emt 0:01:01]} 74. Nd4 {[%emt 0:01:10]} Ng4+ {[%emt 0:00:54]} 75. Kf1 {[%emt 0:01:08]} Rxe7 {[%emt 0:02:41]} 76. Nf5+ {[%emt 0:00:01]} Kg6 {[%emt 0:00:15]} 77. Nxe7+ {[%emt 0:00:24]} Kf6 {[%emt 0:00:03]} 78. Nc6 {[%emt 0:00:36]} Kf5 {[%emt 0:00:52]} 79. Nd4+ {[%emt 0:03:07]} Ke4 {[%emt 0:00:14]} 80. Ne2 {[%emt 0:04:05]} Ne3+ {[%emt 0:01:06]} 81. Kf2 {[%emt 0:00:24]} Nf5 {[%emt 0:00:08]} 82. Nc3+ {[%emt 0:01:30]} Ke5 {[%emt 0:00:01]} 83. Nb1 {[%emt 0:01:06]} Nxh4 {[%emt 0:00:11]} 84. Nd2 {[%emt 0:00:02]} Kf5 {[%emt 0:00:05]} 85. Nc4 {[%emt 0:00:27]} Ng6 {[%emt 0:00:20]} 86. Nd6+ {[%emt 0:00:15]} Kg4 {[%emt 0:00:17]} 87. Ne8 {[%emt 0:00:31]} h4 {[%emt 0:00:12]} 88. Nf6+ {[%emt 0:00:12]} Kf5 {[%emt 0:00:03]} 89. Nd5 {[%emt 0:01:15]} h3 {[%emt 0:00:10]} 90. Kg1 {[%emt 0:00:10]} Kg4 {[%emt 0:02:12]} 91. Kh2 {[%emt 0:00:17]} f3 {[%emt 0:01:13]} 92. Ne3+ {[%emt 0:01:10]} Kh4 {[%emt 0:00:33]} 93. Nf5+ {[%emt 0:01:14]} Kg5 {[%emt 0:00:04]} 94. Ne3 {[%emt 0:00:09]} Nf4 {[%emt 0:01:09]} 95. Kg3 {[%emt 0:00:12]} f2 {[%emt 0:03:48]} 96. Nf1 {[%emt 0:00:13]} Nd3 {[%emt 0:01:12]} 97. Kxh3 {[%emt 0:00:55]} Kf4 {[%emt 0:00:14]} 98. Kg2 {[%emt 0:00:10]} Kg4 {[%emt 0:00:01]} 99. Ne3+ {[%emt 0:00:22]} Kf4 {[%emt 0:00:02]} 100. Nf1 {[%emt 0:00:16]} Ke4 {[%emt 0:00:01]} 101. Kg3 {[%emt 0:00:20]} Kd4 {[%emt 0:00:05]} 102. Kf3 {[%emt 0:00:04]} Kc3 {[%emt 0:00:02]} 103. Ke2 {[%emt 0:00:13]} Kc2 {[%emt 0:01:19]} 104. Nh2 {[%emt 0:01:49]} Kc3 {[%emt 0:00:44]} 105. Kf3 {[%emt 0:00:16]} Kd2 {[%emt 0:00:23]} 106. Nf1+ {[%emt 0:00:38]} Ke1 {[%emt 0:01:02]} 107. Ng3 {[%emt 0:00:24]} Ne5+ {[%emt 0:01:47]} 108. Ke3 {[%emt 0:00:19]} Ng4+ {[%emt 0:00:18]} 109. Kf3 {[%emt 0:00:41]} Nh6 {[%emt 0:00:28]} 110. Kg2 {[%emt 0:00:11]} Nf7 {[%emt 0:00:14]} 111. Nf1 {[%emt 0:00:26]} Nd6 {[%emt 0:00:31]} 112. Ng3 {[%emt 0:00:04]} Nf5 {[%emt 0:01:05]} 113. Nf1 {[%emt 0:00:04]} Ke2 {[%emt 0:00:10]} 114. Nh2 {[%emt 0:00:10]} Ne3+ {[%emt 0:00:15]} 115. Kh1 {[%emt 0:00:48]} Nf1 {[%emt 0:01:20]} 116. Ng4 {[%emt 0:00:32]} Ng3+ {[%emt 0:00:13]} 117. Kg2 {[%emt 0:00:06]} f1=Q+ {[%emt 0:00:07]} 0-1